bitfinex/quotes_BTCUSD_20230101
["timestamp","ask_amount","ask_price","bid_price","bid_amount"]
[1672604987295,1.34239,16639.0,16638.0,0.04174362]
[1672604988171,1.56544135,16639.0,16638.0,0.04174362]
[1672604988441,0.94555135,16639.0,16638.0,0.04174362]
[1672604988688,1.56544135,16639.0,16638.0,0.04174362]
[1672604989677,0.94555135,16639.0,16638.0,0.04174362]
[1672604989893,1.56544135,16639.0,16638.0,0.04174362]
[1672604998374,1.08479335,16639.0,16638.0,0.04174362]
[1672604999154,1.56544135,16639.0,16638.0,0.04174362]
[1672605000161,0.94555135,16639.0,16638.0,0.04174362]
[1672605000672,1.56544135,16639.0,16638.0,0.04174362]
[1672605001188,1.56544135,16639.0,16638.0,0.04163751]
[1672605001684,0.94555135,16639.0,16638.0,0.04163751]
[1672605001940,1.56544135,16639.0,16638.0,0.04163751]
[1672605002691,0.94555135,16639.0,16638.0,0.04163751]
[1672605002928,1.56544135,16639.0,16638.0,0.04163751]
[1672605003185,1.08479335,16639.0,16638.0,0.04163751]
[1672605003931,0.64555135,16639.0,16638.0,0.04163751]
[1672605004167,0.94555135,16639.0,16638.0,0.04163751]
[1672605004414,1.56544135,16639.0,16638.0,0.04163751]
[1672605004687,1.26544135,16639.0,16638.0,0.04163751]
[1672605004936,1.56544135,16639.0,16638.0,0.04163751]
[1672605005204,0.64555135,16639.0,16638.0,0.04163751]
[1672605005729,1.26544135,16639.0,16638.0,0.04163751]
[1672605006426,0.94555135,16639.0,16638.0,0.04163751]
[1672605006675,1.56544135,16639.0,16638.0,0.04163751]
[1672605007961,0.94555135,16639.0,16638.0,0.04163751]
[1672605008207,1.56544135,16639.0,16638.0,0.04163751]
[1672605008695,0.94555135,16639.0,16638.0,0.04163751]
[1672605008953,1.56544135,16639.0,16638.0,0.04163751]
[1672605009196,0.94555135,16639.0,16638.0,0.04163751]
[1672605009474,1.56544135,16639.0,16638.0,0.04163751]
[1672605009964,0.94555135,16639.0,16638.0,0.04163751]
[1672605010448,1.56544135,16639.0,16638.0,0.04163751]
[1672605010707,0.94555135,16639.0,16638.0,0.04163751]
[1672605012455,1.56544135,16639.0,16638.0,0.04163751]
[1672605012708,0.94555135,16639.0,16638.0,0.04163751]
[1672605013557,1.56544135,16639.0,16638.0,0.04163751]
[1672605013738,0.94555135,16639.0,16638.0,0.04163751]
[1672605014240,1.56544135,16639.0,16638.0,0.04163751]
[1672605014504,1.08479335,16639.0,16638.0,0.04163751]
[1672605014766,1.56544135,16639.0,16638.0,0.04163751]
[1672605015003,0.94555135,16639.0,16638.0,0.04163751]
[1672605015260,1.56544135,16639.0,16638.0,0.04163751]
[1672605015542,0.94495135,16639.0,16638.0,0.04163751]
[1672605015800,1.56484135,16639.0,16638.0,0.04163751]
[1672605016083,0.94495135,16639.0,16638.0,0.04163751]
[1672605016326,1.56484135,16639.0,16638.0,0.04163751]
[1672605016580,0.94495135,16639.0,16638.0,0.04163751]
[1672605016817,1.56484135,16639.0,16638.0,0.04163751]
[1672605017829,0.94495135,16639.0,16638.0,0.04163751]
[1672605018047,1.56484135,16639.0,16638.0,0.04163751]
[1672605018309,0.94495135,16639.0,16638.0,0.04163751]
[1672605018527,1.56484135,16639.0,16638.0,0.04163751]
[1672605019743,0.94495135,16639.0,16638.0,0.04163751]
[1672605020005,1.56484135,16639.0,16638.0,0.04163751]
[1672605020251,1.08419335,16639.0,16638.0,0.04163751]
[1672605021740,0.94495135,16639.0,16638.0,0.04163751]
[1672605021981,1.56484135,16639.0,16638.0,0.04163751]
[1672605022414,1.08419335,16639.0,16638.0,0.04163751]
[1672605023184,0.94495135,16639.0,16638.0,0.04163751]
[1672605024657,1.56484135,16639.0,16638.0,0.04163751]
[1672605025408,0.94495135,16639.0,16638.0,0.04163751]
[1672605026145,0.7219,16639.0,16638.0,0.04163751]
[1672605034803,1.34179,16639.0,16638.0,0.04163751]
[1672605035326,0.7219,16639.0,16638.0,0.04163751]
[1672605035819,1.34179,16639.0,16638.0,0.04163751]
[1672605036871,0.861142,16639.0,16638.0,0.04163751]
[1672605037123,0.89682655,16639.0,16638.0,0.04163751]
[1672605037386,1.51671655,16639.0,16638.0,0.04163751]
[1672605037634,2.40484005,16639.0,16638.0,0.04163751]
[1672605038142,2.86716085,16639.0,16638.0,0.04163751]
[1672605038899,2.86716085,16639.0,16638.0,0.04152703]
[1672605040079,2.40484005,16639.0,16638.0,0.04152703]
[1672605041492,2.86716085,16639.0,16638.0,0.04152703]
[1672605041809,2.40484005,16639.0,16638.0,0.04152703]
[1672605042055,2.86716085,16639.0,16638.0,0.04152703]
[1672605042287,2.40484005,16639.0,16638.0,0.04152703]
[1672605042538,2.86716085,16639.0,16638.0,0.04152703]
[1672605050251,2.40484005,16639.0,16638.0,0.04152703]
[1672605051272,2.2299135,16639.0,16638.0,0.04152703]
[1672605051525,1.34179,16639.0,16638.0,0.04152703]
[1672605053065,0.7219,16639.0,16638.0,0.04152703]
[1672605053301,1.34179,16639.0,16638.0,0.04152703]
[1672605055039,0.3219,16639.0,16638.0,0.64265339]
[1672605055285,0.0219,16639.0,16638.0,0.64265339]
[1672605055531,0.5219,16639.0,16638.0,0.04152703]
[1672605055778,1.44179,16639.0,16638.0,0.04152703]
[1672605056284,0.961142,16639.0,16638.0,0.04152703]
[1672605057546,0.8219,16639.0,16638.0,0.04152703]
[1672605057795,1.44179,16639.0,16638.0,0.04152703]
[1672605058030,0.8219,16639.0,16638.0,0.04152703]
[1672605058281,1.63220108,16639.0,16638.0,0.04152703]
[1672605059790,1.44179,16639.0,16638.0,0.04152703]
[1672605060528,0.8219,16639.0,16638.0,0.04140874]
[1672605060775,1.44179,16639.0,16638.0,0.04140874]
[1672605061524,0.8219,16639.0,16638.0,0.01140874]
[1672605061773,1.44179,16639.0,16638.0,0.01140874]
[1672605064739,1.67478135,16639.0,16638.0,0.01140874]
[1672605065983,1.67478135,16639.0,16638.0,0.00547928]
[1672605068793,1.44179,16639.0,16638.0,0.00547928]
[1672605070758,1.44179,16639.0,16638.0,0.00047928]
[1672605091093,1.44179,16639.0,16638.0,0.00041619]
[1672605095163,2.32983868,16639.0,16638.0,0.00041619]
[1672605095362,1.70994868,16639.0,16638.0,0.00041619]
[1672605095618,2.32983868,16639.0,16638.0,0.00041619]
[1672605095846,1.70994868,16639.0,16638.0,0.00041619]
[1672605096094,2.32983868,16639.0,16638.0,0.00041619]
[1672605097572,2.42551385,16639.0,16638.0,0.00041619]
[1672605098065,1.80562385,16639.0,16638.0,0.00041619]
[1672605098321,2.42551385,16639.0,16638.0,0.00041619]
[1672605098817,1.80562385,16639.0,16638.0,0.00041619]
[1672605099058,2.42551385,16639.0,16638.0,0.00041619]
[1672605099555,1.80562385,16639.0,16638.0,0.00041619]
[1672605099801,2.42551385,16639.0,16638.0,0.00041619]
[1672605100769,1.80562385,16639.0,16638.0,0.00041619]
[1672605101015,2.42551385,16639.0,16638.0,0.00041619]
[1672605101517,1.80562385,16639.0,16638.0,0.00041619]
[1672605101758,2.42551385,16639.0,16638.0,0.00041619]
[1672605102470,1.80562385,16639.0,16638.0,0.00041619]
[1672605102716,2.42551385,16639.0,16638.0,0.00041619]
[1672605103479,1.80562385,16639.0,16638.0,0.00041619]
[1672605103723,2.42551385,16639.0,16638.0,0.00041619]
[1672605103963,1.80562385,16639.0,16638.0,0.00041619]
[1672605104220,2.42551385,16639.0,16638.0,0.00041619]
[1672605105169,1.80562385,16639.0,16638.0,0.00041619]
[1672605105471,2.42551385,16639.0,16638.0,0.00041619]
[1672605105965,1.80562385,16639.0,16638.0,0.00041619]
[1672605106222,2.42551385,16639.0,16638.0,0.00041619]
[1672605106953,1.80562385,16639.0,16638.0,0.00041619]
[1672605107202,1.53739035,16639.0,16638.0,0.00041619]
[1672605107687,2.42551385,16639.0,16638.0,0.00041619]
[1672605108651,1.80562385,16639.0,16638.0,0.00041619]
[1672605108893,2.42551385,16639.0,16638.0,0.00041619]
[1672605110139,1.80562385,16639.0,16638.0,0.00041619]
[1672605110402,2.42551385,16639.0,16638.0,0.00041619]
[1672605111430,1.80562385,16639.0,16638.0,0.00041619]
[1672605111643,2.42551385,16639.0,16638.0,0.00041619]
[1672605112135,1.80562385,16639.0,16638.0,0.00041619]
[1672605112381,2.42551385,16639.0,16638.0,0.00041619]
[1672605113160,1.80562385,16639.0,16638.0,0.00041619]
[1672605113409,2.42551385,16639.0,16638.0,0.00041619]
[1672605113908,1.80562385,16639.0,16638.0,0.00041619]
[1672605114156,2.42551385,16639.0,16638.0,0.00041619]
[1672605115389,1.80562385,16639.0,16638.0,0.00041619]
[1672605115603,2.42551385,16639.0,16638.0,0.00041619]
[1672605115866,2.42551385,16639.0,16638.0,0.00033742]
[1672605116119,1.80562385,16639.0,16638.0,0.00033742]
[1672605116358,2.42551385,16639.0,16638.0,0.00033742]
[1672605117850,1.80562385,16639.0,16638.0,0.00033742]
[1672605118068,2.42551385,16639.0,16638.0,0.00033742]
[1672605118552,1.80562385,16639.0,16638.0,0.00033742]
[1672605118798,2.32983868,16639.0,16638.0,0.00033742]
[1672605119524,1.70994868,16639.0,16638.0,0.00033742]
[1672605119766,0.82182518,16639.0,16638.0,0.00033742]
[1672605120032,1.44171518,16639.0,16638.0,0.00033742]
[1672605121309,0.82182518,16639.0,16638.0,0.00033742]
[1672605121581,0.52182518,16639.0,16638.0,0.48725852]
[1672605123831,0.02182518,16639.0,16638.0,0.48725852]
[1672605126049,0.6308689,16639.0,16638.0,0.48725852]
[1672605126303,0.02182518,16639.0,16638.0,0.48725852]
[1672605127810,0.02182518,16639.0,16638.0,1.18725852]
[1672605128055,0.4,16640.0,16639.0,0.17817482]
[1672605128311,0.7,16640.0,16639.0,0.17817482]
[1672605128830,0.7775,16640.0,16639.0,0.17817482]
[1672605130279,0.786,16640.0,16639.0,0.17817482]
[1672605130521,0.795,16640.0,16639.0,0.18817482]
[1672605132251,0.095,16640.0,16639.0,0.18817482]
[1672605135174,0.095,16640.0,16639.0,0.18696412]
[1672605136432,0.395,16640.0,16639.0,0.18696412]
[1672605137499,0.095,16640.0,16639.0,0.18696412]
[1672605139960,0.0175,16640.0,16639.0,0.18696412]
[1672605140464,0.3175,16640.0,16639.0,0.18696412]
[1672605143209,0.0175,16640.0,16639.0,0.18696412]
[1672605143717,0.3175,16640.0,16639.0,0.18696412]
[1672605143960,0.0175,16640.0,16639.0,0.18696412]
[1672605145213,0.3175,16640.0,16639.0,0.18696412]
[1672605148034,0.93739,16640.0,16639.0,0.18696412]
[1672605148273,0.3175,16640.0,16639.0,0.18696412]
[1672605151448,0.0175,16640.0,16639.0,0.18696412]
[1672605152225,0.63739,16640.0,16639.0,0.18696412]
[1672605152473,0.93739,16640.0,16639.0,0.18696412]
[1672605153415,0.3175,16640.0,16639.0,0.18696412]
[1672605153665,0.93739,16640.0,16639.0,0.18696412]
[1672605155157,0.3175,16640.0,16639.0,0.18696412]
[1672605155409,0.93739,16640.0,16639.0,0.18684676]
[1672605156131,0.3175,16640.0,16639.0,0.18684676]
[1672605156382,0.93739,16640.0,16639.0,0.18684676]
[1672605158092,0.3175,16640.0,16639.0,0.18684676]
[1672605158336,0.93739,16640.0,16639.0,0.18684676]
[1672605158866,0.3175,16640.0,16639.0,0.18684676]
[1672605159365,0.93739,16640.0,16639.0,0.18684676]
[1672605159615,1.99536305,16640.0,16639.0,0.18684676]
[1672605159880,1.51471505,16640.0,16639.0,0.18684676]
[1672605160118,1.37547305,16640.0,16639.0,0.18684676]
[1672605160369,1.99536305,16640.0,16639.0,0.18684676]
[1672605161356,0.0175,16640.0,16639.0,0.18684676]
[1672605161615,0.8175,16640.0,16639.0,0.18684676]
[1672605161831,0.5175,16640.0,16639.0,0.18684676]
[1672605164795,0.8175,16640.0,16639.0,0.18684676]
[1672605165064,0.5175,16640.0,16639.0,0.18684676]
[1672605166302,0.0175,16640.0,16639.0,0.18684676]
[1672605167568,0.3175,16640.0,16639.0,0.18684676]
[1672605167840,0.0175,16640.0,16639.0,0.18684676]
[1672605168057,0.009,16640.0,16639.0,0.18684676]
[1672605174015,0.50889463,16640.0,16639.0,0.18684676]
[1672605174259,1.12878463,16640.0,16639.0,0.18684676]
[1672605175715,0.50889463,16640.0,16639.0,0.18684676]
[1672605175970,1.12878463,16640.0,16639.0,0.18684676]
[1672605177150,0.50889463,16640.0,16639.0,0.18684676]
[1672605177396,1.12878463,16640.0,16639.0,0.18684676]
[1672605177889,0.50889463,16640.0,16639.0,0.18684676]
[1672605178131,1.12878463,16640.0,16639.0,0.18684676]
[1672605178592,0.50889463,16640.0,16639.0,0.18684676]
[1672605178811,1.12878463,16640.0,16639.0,0.18684676]
[1672605180934,0.50889463,16640.0,16639.0,0.18684676]
[1672605181915,0.00889463,16640.0,16639.0,0.18684676]
[1672605182410,0.00889463,16640.0,16639.0,0.55443696]
[1672605184127,0.5,16641.0,16639.0,1.24443696]
[1672605184823,0.008,16640.0,16639.0,1.25243696]
[1672605185060,0.5,16641.0,16639.0,1.24407464]
[1672605185318,0.508,16641.0,16639.0,1.25407463]
[1672605190692,0.508,16641.0,16639.0,0.88684676]
[1672605191177,0.508,16641.0,16639.0,1.2416595]
[1672605191438,0.61989,16640.0,16639.0,1.2416595]
[1672605191693,0.508,16641.0,16639.0,0.88684676]
[1672605191938,0.508,16641.0,16639.0,1.24173809]
[1672605192193,0.53762794,16641.0,16639.0,1.24173809]
[1672605192967,0.61989,16640.0,16639.0,1.24173809]
[1672605193225,0.53762794,16641.0,16639.0,0.88684676]
[1672605193466,0.53762794,16641.0,16639.0,1.24164828]
[1672605194222,0.61989,16640.0,16639.0,1.24164828]
[1672605194500,0.53762794,16641.0,16639.0,0.88684676]
[1672605194746,0.53762794,16641.0,16639.0,1.24160826]
[1672605195002,0.53762794,16641.0,16639.0,1.23160826]
[1672605195252,0.52962794,16641.0,16639.0,1.23160826]
[1672605195540,0.008,16640.0,16639.0,1.23960826]
[1672605195798,0.008,16640.0,16639.0,0.18484676]
[1672605196348,0.52962794,16641.0,16639.0,0.17684676]
[1672605196612,0.61989,16640.0,16639.0,0.88676153]
[1672605197068,0.52962794,16641.0,16639.0,0.87676153]
[1672605197330,0.008,16640.0,16639.0,0.88476153]
[1672605198567,0.52962794,16641.0,16639.0,0.87676153]
[1672605199064,0.61989,16640.0,16639.0,0.87676153]
[1672605199314,0.52962794,16641.0,16639.0,0.87676153]
[1672605199572,0.53762794,16641.0,16639.0,0.88676153]
[1672605199810,0.61989,16640.0,16639.0,0.88676153]
[1672605200052,0.53762794,16641.0,16639.0,0.88676153]
[1672605200313,0.53762794,16641.0,16639.0,1.24151896]
[1672605200562,0.52962794,16641.0,16639.0,1.23155827]
[1672605201057,0.008,16640.0,16639.0,1.23155827]
[1672605201316,0.52962794,16641.0,16639.0,0.87676153]
[1672605201551,0.53762794,16641.0,16639.0,1.24148122]
[1672605202826,0.508,16641.0,16639.0,1.24148122]
[1672605205550,0.008,16641.0,16639.0,1.24148122]
[1672605205793,0.008,16641.0,16639.0,1.84274086]
[1672605206049,0.008,16641.0,16639.0,1.48802117]
[1672605206288,0.60914399,16640.0,16639.0,1.48802117]
[1672605207308,0.60914399,16640.0,16639.0,1.47802117]
[1672605207561,0.61714399,16640.0,16639.0,1.48602117]
[1672605208326,0.008,16640.0,16639.0,1.48602117]
[1672605211531,0.61711695,16640.0,16639.0,2.10591117]
[1672605211776,0.008,16640.0,16639.0,1.48602117]
[1672605212328,0.008,16640.0,16639.0,2.10591117]
[1672605212329,0.61712259,16640.0,16639.0,2.10591117]
[1672605212572,0.61712259,16640.0,16639.0,1.48602117]
[1672605214771,0.61712259,16640.0,16639.0,1.72332891]
[1672605214772,0.54935197,16640.0,16639.0,1.72332891]
[1672605215013,0.008,16640.0,16639.0,1.98902164]
[1672605215264,0.60912259,16641.0,16639.0,1.98181522]
[1672605215500,0.60912259,16641.0,16640.0,0.77562195]
[1672605215761,0.60912259,16641.0,16640.0,1.47562195]
[1672605216506,0.60912259,16641.0,16640.0,2.0212955]
[1672605216742,0.61712259,16641.0,16640.0,2.0212955]
[1672605217774,0.61712259,16641.0,16640.0,2.02120401]
[1672605220582,0.008,16641.0,16640.0,2.02120401]
[1672605221561,0.54898099,16641.0,16640.0,2.02120401]
[1672605222304,0.008,16641.0,16640.0,2.02120401]
[1672605222543,0.5488658,16641.0,16640.0,2.02120401]
[1672605225009,0.008,16641.0,16640.0,2.02120401]
[1672605226534,0.54871754,16641.0,16640.0,2.02120401]
[1672605226778,0.008,16641.0,16640.0,2.02120401]
[1672605227560,0.54871757,16641.0,16640.0,2.02120401]
[1672605227812,0.008,16641.0,16640.0,2.02120401]
[1672605228550,0.54868263,16641.0,16640.0,2.02120401]
[1672605228795,0.008,16641.0,16640.0,2.02120401]
[1672605229543,0.54868213,16641.0,16640.0,2.02120401]
[1672605229785,0.008,16641.0,16640.0,2.02120401]
[1672605230023,0.54868181,16641.0,16640.0,2.02120401]
[1672605230265,0.008,16641.0,16640.0,2.02120401]
[1672605230513,0.5486583,16641.0,16640.0,2.02120401]
[1672605231020,0.5486583,16641.0,16640.0,1.6000195]
[1672605231269,0.5486583,16641.0,16640.0,0.9000195]
[1672605231774,0.5486583,16641.0,16640.0,1.5198665]
[1672605232017,0.5486583,16641.0,16640.0,2.2198665]
[1672605234270,0.5486583,16641.0,16640.0,1.6000195]
[1672605236557,0.5486583,16641.0,16640.0,2.2198665]
[1672605237046,0.008,16641.0,16640.0,2.2198665]
[1672605237809,0.45849005,16641.0,16640.0,2.2198665]
[1672605238799,0.81880851,16641.0,16640.0,2.8208275]
[1672605239551,0.81880851,16641.0,16640.0,2.82076734]
[1672605240292,0.81080851,16641.0,16640.0,2.82076734]
[1672605240537,0.45049005,16641.0,16640.0,2.94776734]
[1672605241061,0.81083993,16641.0,16640.0,2.94776734]
[1672605241311,0.45049005,16641.0,16640.0,2.94776734]
[1672605243046,0.5406583,16642.0,16640.0,1.99252055]
[1672605243296,0.5406583,16641.0,16640.0,1.37267355]
[1672605243541,0.5406583,16641.0,16640.0,0.827]
[1672605244027,0.5406583,16641.0,16640.0,1.17525058]
[1672605244777,0.5406583,16641.0,16640.0,1.79509758]
[1672605245264,0.5406583,16641.0,16640.0,1.59644058]
[1672605245518,0.5406583,16641.0,16640.0,1.79509758]
[1672605245760,0.5406583,16641.0,16640.0,1.17525058]
[1672605246002,0.5406583,16641.0,16640.0,1.79509758]
[1672605246743,0.5406583,16641.0,16640.0,1.79589111]
[1672605246994,0.5406583,16641.0,16640.0,1.59723411]
[1672605247759,0.5406583,16641.0,16640.0,1.79589111]
[1672605248000,0.5406583,16641.0,16640.0,1.17525058]
[1672605248251,0.5406583,16641.0,16640.0,1.79509758]
[1672605249014,0.5406583,16641.0,16640.0,1.17525058]
[1672605250508,0.5406583,16641.0,16640.0,1.79509758]
[1672605251292,0.60912259,16642.0,16640.0,1.24819]
[1672605251535,0.71791047,16642.0,16641.0,0.619809]
[1672605251771,0.71791047,16642.0,16641.0,0.7]
[1672605252513,0.10878788,16642.0,16641.0,0.7]
[1672605252771,0.01643542,16643.0,16641.0,0.7]
[1672605253040,0.81643542,16643.0,16641.0,0.742]
[1672605253765,1.27875622,16643.0,16641.0,0.742]
[1672605254023,1.27875622,16643.0,16641.0,0.7]
[1672605254277,1.28775622,16643.0,16641.0,0.7]
[1672605254781,0.12877562,16642.0,16641.0,0.7]
[1672605255754,0.12877562,16642.0,16641.0,0.742]
[1672605258075,0.60875797,16642.0,16641.0,0.742]
[1672605260050,0.60875797,16642.0,16641.0,0.74193881]
[1672605268330,0.60875797,16642.0,16641.0,1.08971798]
[1672605268575,0.60875797,16642.0,16641.0,1.36178581]
[1672605268846,0.60875797,16642.0,16641.0,1.16306281]
[1672605269084,0.60875797,16642.0,16641.0,1.36178581]
[1672605269324,0.60875797,16642.0,16641.0,0.74193881]
[1672605269564,0.60875797,16642.0,16641.0,0.042]
[1672605270309,0.67127731,16642.0,16641.0,0.042]
[1672605270560,0.67127731,16642.0,16641.0,0.742]
[1672605271877,0.67131199,16642.0,16641.0,0.742]
[1672605272190,0.06251934,16642.0,16641.0,0.742]
[1672605273099,0.67130607,16642.0,16641.0,0.742]
[1672605273340,0.60878673,16642.0,16641.0,0.742]
[1672605273839,0.60878673,16642.0,16641.0,1.361847]
[1672605274082,0.60878673,16642.0,16641.0,1.163124]
[1672605274318,0.60878673,16642.0,16641.0,0.742]
[1672605274561,0.60878673,16642.0,16641.0,1.361847]
[1672605274803,0.60878673,16642.0,16641.0,0.742]
[1672605279570,0.60878673,16642.0,16641.0,0.042]
[1672605280584,0.60878673,16642.0,16641.0,0.742]
[1672605282093,0.67130895,16642.0,16641.0,0.742]
[1672605282310,0.06252222,16642.0,16641.0,0.742]
[1672605282845,0.81643542,16643.0,16641.0,0.742]
[1672605283330,1.27875622,16643.0,16641.0,0.7418815]
[1672605283578,0.619847,16642.0,16641.0,0.7418815]
[1672605284070,1.27875622,16643.0,16641.0,0.7418815]
[1672605284331,0.81643542,16643.0,16641.0,0.7]
[1672605284590,0.08164354,16642.0,16641.0,0.7]
[1672605284826,0.08164354,16642.0,16641.0,0.742]
[1672605285078,0.08164354,16642.0,16641.0,0.7]
[1672605285814,0.69069868,16642.0,16641.0,0.7]
[1672605286551,0.69069868,16642.0,16641.0,0.742]
[1672605289275,0.69069561,16642.0,16641.0,0.742]
[1672605289764,0.69069561,16642.0,16641.0,0.042]
[1672605290028,0.08164354,16642.0,16641.0,0.042]
[1672605290744,0.08164354,16642.0,16641.0,0.742]
[1672605291467,1.00149054,16642.0,16641.0,0.742]
[1672605293013,0.52102354,16642.0,16641.0,0.742]
[1672605293259,0.38164354,16642.0,16641.0,0.742]
[1672605293498,0.58164354,16642.0,16641.0,0.742]
[1672605293745,0.58164354,16642.0,16641.0,0.042]
[1672605295248,0.58164354,16642.0,16641.0,0.742]
[1672605300532,0.5,16642.0,16641.0,0.742]
[1672605302668,0.47875622,16643.0,16641.0,0.742]
[1672605302844,0.51643542,16643.0,16641.0,0.742]
[1672605303578,0.51643542,16643.0,16641.0,0.7]
[1672605303821,0.52543542,16643.0,16641.0,0.7]
[1672605304048,0.05254354,16642.0,16641.0,0.7]
[1672605305279,0.05254354,16642.0,16641.0,0.742]
[1672605305998,0.05254354,16642.0,16641.0,0.04189752]
[1672605306997,0.05254354,16642.0,16641.0,0.74189752]
[1672605310950,0.66149498,16642.0,16641.0,0.74189752]
[1672605311218,0.05254354,16642.0,16641.0,0.74189752]
[1672605311716,0.66150934,16642.0,16641.0,0.74189752]
[1672605312196,0.05254354,16642.0,16641.0,0.74189752]
[1672605312689,0.35254354,16642.0,16641.0,0.74189752]
[1672605313913,0.05254354,16642.0,16641.0,0.74189752]
[1672605319661,0.05254354,16642.0,16641.0,0.04189752]
[1672605320640,0.05254354,16642.0,16641.0,0.74189752]
[1672605321380,0.51643542,16643.0,16641.0,0.74189752]
[1672605322066,0.51643542,16643.0,16641.0,0.7]
[1672605322585,0.52543542,16643.0,16641.0,0.7]
[1672605326613,0.52543542,16643.0,16640.0,0.9681596]
[1672605326858,0.60908517,16641.0,16640.0,0.9681596]
[1672605327109,0.60908517,16641.0,16640.0,0.61862344]
[1672605327353,0.60908517,16641.0,16640.0,1.78094424]
[1672605327599,0.60908517,16641.0,16640.0,2.40079124]
[1672605327832,0.60908517,16641.0,16640.0,1.78094424]
[1672605327975,0.60908517,16641.0,16640.0,2.52779124]
[1672605329090,0.60908517,16641.0,16640.0,2.52767252]
[1672605329576,0.60908517,16641.0,16640.0,1.90782552]
[1672605329808,0.60908517,16641.0,16640.0,2.52767252]
[1672605330271,0.60908517,16641.0,16640.0,1.90782552]
[1672605330507,0.60908517,16642.0,16640.0,2.52767252]
[1672605330744,0.60908517,16642.0,16641.0,0.421164]
[1672605330970,0.60908517,16642.0,16641.0,0.7]
[1672605332148,0.60908517,16642.0,16641.0,0.742]
[1672605332621,0.65268126,16642.0,16641.0,0.742]
[1672605333275,0.65268126,16642.0,16641.0,0.042]
[1672605334382,0.65268126,16642.0,16641.0,0.742]
[1672605339793,0.76959293,16642.0,16641.0,0.742]
[1672605340258,0.76959293,16642.0,16641.0,0.042]
[1672605341272,0.76959293,16642.0,16641.0,0.742]
[1672605345414,0.65268126,16642.0,16641.0,0.742]
[1672605345705,0.65268126,16642.0,16641.0,1.361847]
[1672605346214,0.65268126,16642.0,16641.0,0.742]
[1672605346692,0.65268126,16642.0,16641.0,1.361847]
[1672605347432,0.65268126,16642.0,16641.0,0.661847]
[1672605347690,0.65268126,16642.0,16641.0,0.042]
[1672605348423,0.65268126,16642.0,16641.0,0.91876153]
[1672605348672,0.65268126,16642.0,16641.0,1.53860853]
[1672605350527,0.65268126,16642.0,16641.0,0.91876153]
[1672605350772,0.65268126,16642.0,16641.0,1.53860853]
[1672605351019,0.65268126,16642.0,16641.0,1.53854711]
[1672605351267,0.65268126,16642.0,16641.0,0.91870011]
[1672605351537,0.65268126,16642.0,16641.0,1.53854711]
[1672605351777,0.65268126,16642.0,16641.0,0.91870011]
[1672605352020,0.65268126,16642.0,16641.0,1.53854711]
[1672605352757,0.65268126,16642.0,16641.0,2.46551762]
[1672605352996,0.65268126,16642.0,16641.0,1.38334982]
[1672605353241,0.65268126,16642.0,16641.0,2.00319582]
[1672605353735,0.65268126,16642.0,16641.0,2.46551662]
[1672605355748,0.65268126,16642.0,16641.0,2.00319582]
[1672605358158,0.65268126,16642.0,16641.0,1.53854611]
[1672605361924,0.65268126,16642.0,16641.0,2.53854611]
[1672605362156,0.65268126,16642.0,16641.0,3.00086691]
[1672605363351,0.65268126,16642.0,16641.0,2.53854611]
[1672605365720,0.65268126,16642.0,16641.0,3.00086691]
[1672605366432,0.65268126,16642.0,16641.0,2.30086691]
[1672605366955,0.65268126,16642.0,16641.0,1.83854611]
[1672605367453,0.71962696,16642.0,16641.0,2.53854611]
[1672605367976,0.71962696,16642.0,16641.0,1.91870011]
[1672605368225,0.11050776,16642.0,16641.0,1.91870011]
[1672605368470,0.65272549,16642.0,16641.0,1.91870011]
[1672605368771,0.04359609,16642.0,16641.0,1.91870011]
[1672605370760,0.96344309,16642.0,16641.0,1.91870011]
[1672605371009,0.96344309,16642.0,16641.0,1.91858514]
[1672605371517,0.96344309,16642.0,16641.0,1.21858514]
[1672605371771,1.15024329,16642.0,16641.0,1.21858514]
[1672605374537,1.15874329,16642.0,16641.0,1.21858514]
[1672605377570,0.53889629,16642.0,16641.0,1.21858514]
[1672605377819,0.35209609,16642.0,16641.0,1.21858514]
[1672605378065,0.55209609,16642.0,16641.0,1.21858514]
[1672605378313,1.47194309,16642.0,16641.0,1.21858514]
[1672605383804,0.97194309,16642.0,16641.0,1.21858514]
[1672605384058,0.05209609,16642.0,16641.0,1.21858514]
[1672605384312,0.40894924,16642.0,16641.0,1.21858514]
[1672605384809,0.10894924,16642.0,16641.0,1.21858514]
[1672605385559,0.10044924,16642.0,16641.0,1.21858514]
[1672605386317,0.70870163,16642.0,16641.0,1.21858514]
[1672605387823,0.04359609,16642.0,16641.0,1.21858514]
[1672605388090,0.65186097,16642.0,16641.0,1.21858514]
[1672605393479,0.65186097,16642.0,16641.0,1.2184731]
[1672605395539,0.04359609,16642.0,16641.0,1.2184731]
[1672605396038,0.6520307,16642.0,16641.0,1.2184731]
[1672605396276,0.65203048,16642.0,16641.0,1.2184731]
[1672605396572,0.768877,16642.0,16641.0,1.2184731]
[1672605396777,0.16044268,16642.0,16641.0,1.2184731]
[1672605397021,0.04359609,16642.0,16641.0,1.2184731]
[1672605403042,0.04353038,16642.0,16641.0,1.2184731]
[1672605403774,0.04153038,16642.0,16641.0,1.2184731]
[1672605416818,0.02653038,16642.0,16641.0,1.2184731]
[1672605417559,0.03930549,16642.0,16641.0,1.2184731]
[1672605421294,0.39487958,16642.0,16641.0,1.2184731]
[1672605421538,1.01472658,16642.0,16641.0,1.2184731]
[1672605432959,0.95915249,16642.0,16641.0,1.2184731]
[1672605433700,0.33930549,16642.0,16641.0,1.2184731]
[1672605434940,0.03930549,16642.0,16641.0,1.2184731]
[1672605435393,0.02930549,16642.0,16641.0,1.2184731]
[1672605439614,0.03760881,16642.0,16641.0,1.2184731]
[1672605440626,0.03760881,16642.0,16641.0,1.6807939]
[1672605441377,0.64647284,16642.0,16641.0,1.6807939]
[1672605441889,0.64647284,16642.0,16641.0,2.24821528]
[1672605442402,0.64647284,16642.0,16641.0,3.56806228]
[1672605443347,0.03760881,16642.0,16641.0,3.56806228]
[1672605449451,0.57835794,16642.0,16641.0,3.56806228]
[1672605449962,0.57835794,16642.0,16641.0,2.86806228]
[1672605450204,0.03760881,16642.0,16641.0,2.86806228]
[1672605450805,0.03760881,16642.0,16641.0,3.56806228]
[1672605453871,0.57827337,16642.0,16641.0,3.56806228]
[1672605454120,0.03760881,16642.0,16641.0,3.56806228]
[1672605458112,0.03760881,16642.0,16641.0,3.56796508]
[1672605459407,0.57819949,16642.0,16641.0,3.56796508]
[1672605459914,0.57819949,16642.0,16641.0,2.5382229]
[1672605460145,0.03760881,16642.0,16641.0,1.9183759]
[1672605461830,0.03760881,16642.0,16641.0,2.5382229]
[1672605463304,0.03760881,16642.0,16641.0,3.0005437]
[1672605465010,0.03760881,16642.0,16641.0,2.5382229]